bitfinex-derivatives/quotes_ETHF0:USTF0_20260201
["timestamp","ask_amount","ask_price","bid_price","bid_amount"]
[1769940374940,3.9264667,2428.2,2427.8,2.45120562]
[1769940375147,3.9264667,2428.2,2427.7,2.45120562]
[1769940375539,3.9264667,2428.2,2427.8,2.45120562]
[1769940375736,3.9264667,2428.2,2427.7,2.45120562]
[1769940375737,2.9684764,2428.2,2427.7,2.45120562]
[1769940376144,2.9684764,2428.2,2427.8,2.45120562]
[1769940376336,2.9684764,2428.2,2427.7,2.45120562]
[1769940376843,2.9684764,2428.2,2427.9,2.45120562]
[1769940377038,0.00444565,2428.2,2427.8,4.70363062]
[1769940377238,4.93663911,2428.9,2428.0,4.70363062]
[1769940377444,4.93663911,2429.0,2428.0,2.252425]
[1769940377644,9.05863911,2429.1,2428.1,2.45120562]
[1769940377845,3.92202105,2429.0,2428.1,4.70363062]
[1769940378141,3.92561741,2429.0,2428.2,2.45120562]
[1769940378541,3.92561741,2429.0,2427.8,2.417]
[1769940378836,3.92561741,2429.0,2427.8,7.10804899]
[1769940379042,3.92561741,2429.0,2428.0,2.45120562]
[1769940379535,3.92561741,2429.0,2428.1,2.45120562]
[1769940379736,3.92561741,2429.0,2428.2,2.45120562]
[1769940379941,3.92561741,2429.0,2428.2,4.69104899]
[1769940380140,3.92561741,2429.0,2428.4,2.45120562]
[1769940380347,3.92561741,2429.0,2428.4,2.45485438]
[1769940380547,3.92561741,2429.0,2428.6,2.45120562]
[1769940381445,3.92561741,2429.0,2428.7,2.45120562]
[1769940381646,3.92561741,2429.0,2428.6,2.45120562]
[1769940382248,3.92561741,2429.0,2428.7,2.45120562]
[1769940382448,3.92561741,2429.0,2428.6,2.45120562]
[1769940382649,3.92561741,2429.0,2428.4,0.00364876]
[1769940382650,3.92561741,2429.0,2428.7,2.45120562]
[1769940382948,3.92561741,2429.0,2428.6,2.45120562]
[1769940383148,3.92561741,2429.0,2428.7,2.45120562]
[1769940383548,3.92561741,2429.0,2428.8,2.45120562]
[1769940383850,3.92202105,2429.5,2428.9,2.45120562]
[1769940384351,3.92202105,2429.5,2428.4,0.00364876]
[1769940385052,3.92493711,2429.5,2428.4,0.00364876]
[1769940385752,3.92493711,2429.5,2428.2,2.07260318]
[1769940385753,3.92202105,2429.3,2427.8,3.71562666]
[1769940386451,2.57969286,2429.4,2428.7,3.71562666]
[1769940386747,0.00291606,2429.5,2428.7,3.71872684]
[1769940387249,1.58557623,2429.9,2428.7,3.71872684]
[1769940387442,1.58557623,2430.2,2428.8,8.61862666]
[1769940387644,0.20594,2430.4,2428.9,3.71562666]
[1769940388153,0.00499635,2430.4,2428.9,3.71562666]
[1769940388546,3.92202105,2430.3,2428.9,3.71562666]
[1769940391255,3.92202105,2430.3,2429.0,3.237]
[1769940391457,3.92202105,2430.1,2429.0,3.237]
[1769940392161,3.92202105,2430.1,2429.0,6.95262666]
[1769940394966,3.92202105,2430.1,2429.1,3.71562666]
[1769940396260,3.92202105,2430.1,2429.0,3.71562666]
[1769940396466,3.92202105,2430.1,2428.8,7.18162666]
[1769940396663,3.92202105,2430.1,2428.9,3.71562666]
[1769940404672,3.92202105,2430.1,2428.8,3.466]
[1769940404873,3.67055003,2429.8,2428.7,4.12210018]
[1769940406272,3.67055003,2429.8,2428.7,0.00310018]
[1769940406475,3.67055003,2429.5,2428.1,4.02335932]
[1769940407472,3.67055003,2429.5,2428.1,4.02775946]
[1769940407971,3.67055003,2429.5,2428.1,0.00440014]
[1769940408174,3.87657003,2429.5,2428.1,0.00440014]
[1769940408475,3.87657003,2429.5,2428.1,4.02775946]
[1769940411574,1.58431963,2429.3,2428.1,4.02775946]
[1769940411881,3.67055003,2429.2,2428.1,4.02775946]
[1769940413380,3.67055003,2429.2,2428.3,4.02335932]
[1769940414379,3.67055003,2429.0,2428.1,0.00440014]
[1769940414682,3.67055003,2428.8,2428.1,0.00440014]
[1769940415479,3.67055003,2428.4,2427.5,4.02335932]
[1769940416379,3.67457225,2428.4,2427.5,4.02758249]
[1769940416577,3.67457225,2428.4,2427.5,0.00422317]
[1769940416776,3.67055003,2428.2,2427.5,0.00422317]
[1769940417078,3.17055003,2428.2,2427.5,0.00422317]
[1769940418478,0.00402222,2428.4,2427.5,4.02758249]
[1769940419281,3.67457225,2428.4,2427.5,4.02758249]
[1769940420884,0.00402222,2428.4,2427.5,4.02758249]
[1769940421282,3.67055003,2429.1,2427.6,4.02335932]
[1769940421486,3.67055003,2429.1,2427.7,4.02335932]
[1769940421687,3.67055003,2429.1,2427.8,4.02335932]
[1769940421891,3.67055003,2429.1,2427.6,4.02335932]
[1769940422289,3.88192981,2429.1,2427.6,4.02335932]
[1769940422692,3.67055003,2428.9,2427.6,4.02335932]
[1769940423595,3.67587981,2429.1,2427.6,4.22952932]
[1769940425393,3.67587981,2429.1,2427.7,4.02335932]
[1769940425595,0.00532978,2429.1,2428.1,4.22948932]
[1769940425787,3.67055003,2429.6,2428.3,4.02335932]
[1769940426193,3.67055003,2429.6,2428.4,4.02335932]
[1769940426392,3.67055003,2429.8,2428.4,4.02335932]
[1769940427093,0.00397017,2429.8,2428.8,4.02335932]
[1769940427292,0.00397017,2429.8,2429.0,3.68605369]
[1769940430897,3.80941957,2430.3,2429.0,3.68605369]
[1769940431702,3.80941957,2430.5,2429.0,3.68605369]
[1769940431900,3.81230591,2430.5,2429.0,3.89211369]
[1769940434800,0.00288634,2430.5,2429.0,3.89211369]
[1769940435002,0.00288634,2430.5,2429.2,3.68605369]
[1769940435405,0.00288634,2430.5,2429.3,3.68605369]
[1769940435605,0.00288634,2430.5,2429.3,3.69133939]
[1769940436198,0.00288634,2430.5,2429.6,3.68605369]
[1769940436403,3.80941957,2430.9,2429.8,3.68605369]
[1769940436704,3.80941957,2431.1,2429.8,3.68605369]
[1769940437608,3.81433809,2431.1,2429.8,3.68605369]
[1769940439512,3.81433809,2431.1,2429.5,3.68605369]
[1769940439712,3.80941957,2430.8,2429.3,3.69133939]
[1769940439907,4.01532957,2430.8,2429.3,3.69133939]
[1769940441911,4.01539957,2429.9,2428.4,3.68605369]
[1769940442215,3.80941957,2429.7,2428.4,3.68605369]
[1769940442807,7.33710821,2431.9,2429.6,2.44572755]
[1769940443008,4.06362015,2432.4,2431.1,2.44572755]
[1769940443212,2.44572755,2433.8,2431.1,2.44572755]
[1769940443213,4.06362015,2433.6,2431.2,6.533]
[1769940443412,4.06362015,2433.4,2431.9,0.0715894]
[1769940443811,4.06362015,2433.1,2431.9,2.48295018]
[1769940444012,4.06362015,2433.1,2432.0,2.415]
[1769940444212,4.06362015,2433.0,2432.0,2.415]
[1769940444410,4.06362015,2432.9,2432.0,2.415]
[1769940447018,4.06362015,2432.6,2431.9,0.07478241]
[1769940447515,4.06362015,2432.6,2431.5,0.20584]
[1769940447516,8.17962015,2432.4,2431.5,2.62084]
[1769940447716,4.06362015,2432.4,2431.5,2.62084]
[1769940448019,4.06362015,2433.3,2431.7,2.44572755]
[1769940448219,4.06362015,2432.9,2431.7,2.44572755]
[1769940448419,4.06362015,2432.9,2431.7,2.44879001]
[1769940449215,12.83971845,2432.8,2431.7,2.65462001]
[1769940449414,16.9033386,2432.8,2431.7,2.65462001]
[1769940449715,4.06362015,2432.8,2431.7,0.20889246]
[1769940450412,0.00511355,2433.4,2431.7,0.20889246]
[1769940450413,4.06362015,2433.3,2431.8,2.44572755]
[1769940450722,4.06362015,2433.2,2432.3,0.20578]
[1769940450923,4.06362015,2433.2,2432.4,2.414]
[1769940451218,16.9033386,2433.1,2432.4,2.414]
[1769940452320,0.00511355,2433.4,2432.5,3.68605369]
[1769940452520,12.83971845,2433.3,2432.5,3.68605369]
[1769940452722,12.83971845,2433.3,2431.8,2.40816777]
[1769940452921,4.116,2433.1,2431.7,3.90406246]
[1769940453315,4.116,2432.7,2431.7,0.00306246]
[1769940453516,4.116,2433.1,2431.7,0.00306246]
[1769940453725,4.116,2433.1,2431.7,3.68911615]
[1769940453916,4.116,2432.9,2431.7,3.68911615]
[1769940454116,0.00511355,2433.4,2431.7,0.00306246]
[1769940454117,12.83971845,2433.2,2431.7,0.00306246]
[1769940454320,3.80941957,2432.7,2431.7,0.00306246]
[1769940454712,3.80941957,2432.3,2431.3,2.413]
[1769940455219,3.80941957,2432.1,2431.3,2.413]
[1769940455615,16.64913802,2432.0,2431.3,2.4170277]
[1769940455817,3.80941957,2432.0,2431.3,2.4170277]
[1769940456019,16.64913802,2432.0,2431.3,2.4170277]
[1769940458617,0.2057,2433.2,2431.3,2.4170277]
[1769940458618,3.79017694,2432.3,2431.3,6.20010364]
[1769940458923,3.79017694,2432.2,2431.3,6.20010364]
[1769940459122,20.74589539,2432.2,2431.3,6.20010364]
[1769940460221,20.74589539,2432.2,2431.3,8.60827141]
[1769940460819,20.74589539,2432.2,2431.4,2.40816777]
[1769940461119,20.74589539,2432.2,2431.4,6.29137022]
[1769940461316,0.2057,2433.2,2431.5,6.34956874]
[1769940461622,4.116,2432.7,2431.6,6.34956874]
[1769940461816,0.2057,2433.2,2431.6,6.34956874]
[1769940461817,4.116,2432.8,2431.7,3.94140097]
[1769940462017,4.116,2432.7,2431.7,3.94140097]
[1769940462221,4.116,2432.8,2431.7,3.94140097]
[1769940462721,4.116,2432.5,2431.7,6.34956874]
[1769940462921,4.116,2432.8,2431.7,6.34956874]
[1769940463323,4.116,2432.5,2431.7,6.34956874]
[1769940463622,3.79017694,2432.6,2431.7,6.34956874]
[1769940463822,4.116,2432.4,2431.7,6.34956874]
[1769940464322,4.116,2432.3,2431.7,11.0110136]
[1769940464519,3.84702808,2433.3,2431.8,6.06658348]
[1769940464721,3.84702808,2433.0,2431.8,2.40816777]
[1769940464917,3.84702808,2432.8,2431.8,2.40816777]
[1769940465224,3.84702808,2432.8,2431.8,7.06961263]
[1769940465522,4.116,2432.6,2431.8,10.72802834]
[1769940465920,3.76918322,2432.2,2431.9,7.06961263]
[1769940466124,3.76918322,2432.2,2431.8,7.06961263]
[1769940466325,3.616,2432.0,2431.8,2.40816777]
[1769940466521,10.67972755,2434.1,2431.5,3.61225165]
[1769940466522,3.616,2432.5,2431.5,3.61225165]
[1769940466724,3.616,2432.7,2431.4,8.55725165]
[1769940466920,3.616,2432.6,2431.4,4.945]
[1769940467427,2.44572755,2433.2,2431.4,4.945]
[1769940467626,3.616,2432.7,2431.4,4.945]
[1769940467924,3.616,2432.7,2431.4,8.60341571]
[1769940468124,2.90845913,2432.3,2431.4,8.60341571]
[1769940468525,3.616,2432.3,2431.5,3.65841571]
[1769940468926,6.52445913,2432.3,2431.5,3.65841571]
[1769940469127,3.616,2432.2,2431.5,3.65841571]
[1769940469627,3.616,2432.1,2431.5,3.65841571]
[1769940469827,3.616,2432.2,2431.5,3.65841571]
[1769940470328,3.616,2432.1,2431.5,7.27066736]
[1769940470523,3.616,2432.2,2431.5,7.27066736]
[1769940471027,3.616,2432.1,2431.5,7.27066736]
[1769940471228,3.616,2432.2,2431.6,3.61225165]
[1769940471429,3.616,2432.1,2431.6,7.27066736]
[1769940471825,3.616,2432.0,2431.6,7.27066736]
[1769940472125,3.616,2432.1,2431.6,7.27066736]
[1769940472325,2.90845913,2432.3,2431.9,3.61225165]
[1769940472626,2.90845913,2432.3,2431.8,3.61225165]
[1769940473230,2.90845913,2432.3,2431.7,3.61225165]
[1769940475930,2.90277955,2432.8,2431.8,3.65841571]
[1769940476132,2.90277955,2432.8,2431.9,3.65841571]
[1769940476331,1.90277955,2432.8,2431.9,3.65841571]
[1769940476632,0.20569,2433.3,2432.3,3.61225165]
[1769940477433,7.88211355,2433.4,2432.3,3.61225165]
[1769940477630,4.11911355,2433.4,2432.3,7.27066736]
[1769940477832,4.11911355,2433.4,2432.4,7.27066736]
[1769940478237,4.11911355,2433.4,2432.3,3.61225165]
[1769940478435,1.71986056,2433.3,2432.4,4.4679977]
[1769940478735,1.71986056,2433.3,2432.2,12.24266736]
[1769940479035,1.71986056,2433.3,2432.3,4.46821612]
[1769940479237,1.71986056,2433.3,2432.4,4.46821612]
[1769940479435,1.71986056,2433.3,2432.3,3.65841571]
[1769940479632,1.71986056,2433.3,2432.4,4.45380876]
[1769940479833,1.71986056,2433.3,2432.1,3.61225165]
[1769940480035,1.71986056,2433.3,2432.2,8.0660687]
[1769940480234,1.71986056,2433.3,2432.4,3.65841571]
[1769940480631,1.71986056,2433.3,2432.5,4.45350159]
[1769940480833,1.71986056,2433.3,2432.4,3.65841571]
[1769940481034,1.71986056,2433.3,2432.5,4.45349938]
[1769940481236,1.71986056,2433.3,2432.4,3.65841571]
[1769940481539,1.71986056,2433.3,2432.5,4.45500352]
[1769940481840,1.71986056,2433.3,2432.4,3.65841571]
[1769940482140,1.71986056,2433.3,2432.5,4.45366169]
[1769940482340,1.71986056,2433.3,2432.3,3.61225165]
[1769940482540,1.71986056,2433.3,2432.4,8.06811364]
[1769940482738,1.71986056,2433.3,2432.5,4.45586199]
[1769940482934,1.92556056,2433.3,2432.0,4.06053782]
[1769940483234,1.92556056,2433.3,2432.1,7.67278947]
[1769940483439,1.92556056,2433.3,2432.3,4.06053782]
[1769940485347,1.71986056,2433.3,2432.3,4.06053782]
[1769940487441,0.00644158,2433.4,2432.3,4.06053782]
[1769940487747,0.00132803,2433.3,2432.3,4.06053782]
[1769940489349,0.00511355,2433.4,2432.3,4.06053782]
[1769940494860,0.00511355,2433.4,2432.3,8.27457634]
[1769940495053,0.00511355,2433.4,2432.4,4.06354127]
[1769940500458,0.00511355,2433.4,2432.2,4.06354127]
[1769940503761,0.00511355,2433.4,2432.3,4.06354127]
[1769940504261,0.00511355,2433.4,2432.4,4.06354127]
[1769940508459,0.00511355,2433.4,2431.9,4.06354127]
[1769940508664,0.20571,2433.1,2431.9,4.06354127]
[1769940517467,0.20573,2432.9,2431.9,4.06354127]
[1769940517868,2.413,2433.1,2431.4,4.06142644]
[1769940518069,0.20575,2432.7,2431.4,4.06142644]
[1769940518274,0.20575,2432.6,2431.4,4.06142644]
[1769940523585,0.20576,2432.5,2431.4,4.06142644]
[1769940524080,7.38477457,2433.0,2431.4,4.06142644]
[1769940524279,0.20578,2432.3,2431.4,4.06142644]
[1769940524476,0.20578,2432.3,2431.3,0.0040277]
[1769940524982,0.20578,2432.3,2431.3,4.06606496]
[1769940532583,7.38477457,2433.0,2431.3,4.06606496]
[1769940532782,0.20575,2432.7,2431.3,4.06606496]
[1769940533184,9.79777457,2433.1,2431.3,4.06606496]
[1769940533383,7.38477457,2433.0,2431.3,4.06606496]
[1769940533577,0.20576,2432.5,2431.3,4.06606496]
[1769940539089,0.20577,2432.4,2431.3,4.06606496]
[1769940540393,2.4386827,2432.7,2431.3,4.06606496]
[1769940540590,0.20579,2432.2,2431.3,4.06606496]
[1769940549198,6.35683626,2432.2,2431.3,4.06606496]
[1769940555601,1.58076176,2432.0,2431.3,4.06606496]
[1769940559207,1.58076176,2432.3,2431.3,4.06606496]
[1769940559902,9.81604626,2432.4,2430.8,2.41532141]
[1769940559903,1.58076176,2431.4,2430.8,2.41532141]
[1769940560102,1.58076176,2431.4,2430.6,3.95682026]
[1769940560405,1.58076176,2431.4,2430.4,6.37214167]
[1769940560808,1.58076176,2431.4,2430.4,2.41532141]
[1769940561004,1.58076176,2431.4,2430.4,6.37214167]
[1769940561201,1.58474835,2431.4,2430.4,2.41950075]
[1769940561709,1.58474835,2431.4,2430.4,0.00417934]
[1769940561908,1.58474835,2431.4,2430.5,3.67080664]
[1769940562809,1.58076176,2431.2,2430.5,3.67080664]
[1769940564112,1.58474835,2431.4,2430.5,3.67080664]
[1769940567215,0.00398659,2431.4,2430.7,3.67080664]
[1769940567615,1.58076176,2431.6,2430.7,3.67080664]
[1769940568015,1.58076176,2431.4,2430.7,3.67080664]
[1769940568512,1.58424615,2431.4,2430.7,3.67080664]
[1769940576230,1.58076176,2431.2,2430.7,3.67080664]
[1769940576626,3.77432739,2431.4,2430.7,3.67080664]
[1769940576627,0.00348439,2431.4,2430.7,3.67080664]
[1769940576828,3.77432739,2431.4,2430.7,3.67080664]
[1769940577729,0.00348439,2431.4,2430.7,3.67080664]
[1769940581833,6.15104626,2431.7,2430.7,3.67080664]
[1769940582034,11.56275889,2431.9,2430.7,3.67080664]
[1769940582327,1.58076176,2431.7,2430.7,3.67080664]
[1769940582534,5.41171263,2431.5,2430.7,3.67080664]
[1769940582935,5.41557411,2431.5,2430.7,3.67080664]
[1769940591739,3.83263725,2431.4,2430.7,3.67080664]
[1769940592040,5.41339901,2431.3,2430.7,3.67080664]
[1769940593634,3.83263725,2431.3,2430.7,3.67080664]
[1769940594441,3.83263725,2431.3,2430.5,3.78945201]
[1769940594841,6.15490774,2431.5,2430.5,3.78945201]
[1769940595239,0.00386148,2431.5,2430.5,3.78945201]
[1769940595842,0.00386148,2431.5,2430.7,3.78945201]
[1769940597738,6.15104626,2431.9,2430.7,3.78945201]
[1769940598131,3.83263725,2431.8,2430.7,3.78945201]
[1769940598738,3.83569982,2431.8,2430.7,3.78945201]
[1769940601751,3.83263725,2431.2,2430.4,0.00417934]
[1769940602044,3.83263725,2431.4,2430.4,0.00417934]
[1769940602943,3.83263725,2431.3,2430.4,0.00417934]
[1769940603736,3.83263725,2431.3,2430.4,3.79363135]
[1769940604246,6.15104626,2431.4,2430.4,3.79363135]
[1769940604447,10.18953351,2431.5,2430.4,3.79363135]
[1769940605046,4.03848725,2431.5,2430.4,3.79363135]
[1769940606749,9.98368351,2431.7,2430.4,3.79363135]
[1769940607140,6.15410883,2431.8,2430.4,3.79363135]
[1769940607547,10.18689081,2431.8,2430.4,3.79363135]
[1769940608554,4.03584455,2431.8,2430.6,3.78689247]
[1769940609643,4.03278198,2431.7,2430.6,3.78689247]
[1769940610850,4.03278198,2431.5,2430.4,3.79107181]
[1769940614256,4.03278198,2431.4,2430.4,3.79107181]
[1769940617361,4.03278198,2431.3,2430.4,3.79107181]
[1769940617757,4.03278198,2431.3,2430.4,0.00417934]
[1769940618960,4.03278198,2431.3,2430.4,3.79107181]
[1769940626562,10.18382824,2431.3,2430.4,0.00417934]
[1769940626764,4.03278198,2431.2,2430.4,3.79107181]
[1769940632467,6.15104626,2431.3,2430.4,3.79107181]
[1769940632672,4.03278198,2431.4,2430.4,3.79107181]
[1769940633076,6.15104626,2431.7,2430.4,3.79107181]
[1769940633277,6.15410883,2431.8,2430.5,3.78689247]
[1769940633471,0.00306257,2431.8,2430.5,3.78689247]
[1769940637075,0.00306257,2431.8,2430.6,3.78689247]
[1769940637477,0.00306257,2431.8,2430.8,3.89695323]
[1769940640276,3.75596542,2432.5,2431.3,3.89695323]
[1769940641279,3.76119535,2432.5,2431.3,3.89695323]
[1769940647186,4.02268894,2432.1,2430.9,3.84984489]
[1769940647792,4.02268894,2431.5,2430.6,3.84984489]
[1769940656596,1.58115646,2431.5,2430.6,3.84984489]
[1769940656896,9.75204626,2432.2,2430.4,0.00417934]
[1769940656897,4.02268894,2431.0,2430.4,0.00417934]
[1769940660295,4.02268894,2431.2,2430.4,3.85402423]
[1769940660500,4.02268894,2431.6,2430.6,3.84984489]
[1769940664306,4.02268894,2431.8,2431.0,3.84984489]
[1769940664699,1.78695646,2432.1,2431.0,3.84984489]
[1769940664700,4.02268894,2432.0,2431.0,3.84984489]
[1769940666701,4.02268894,2432.0,2431.2,3.84984489]
[1769940671504,4.02845834,2431.5,2430.7,3.93316231]
[1769940671697,4.02845834,2431.5,2430.4,2.44016967]
[1769940671902,3.52845834,2431.5,2430.5,3.93316231]
[1769940672102,1.58115646,2431.4,2430.5,3.93316231]
[1769940672303,1.58115646,2431.6,2430.5,3.93316231]
[1769940673809,4.02845834,2431.5,2430.5,3.93316231]
[1769940678310,4.02845834,2431.8,2430.8,3.93316231]
[1769940679209,4.02845834,2432.3,2431.4,3.93316231]
[1769940680211,4.03368827,2432.5,2431.6,3.93316231]
[1769940682108,0.00522993,2432.5,2431.8,3.93316231]
[1769940684314,4.02845834,2432.7,2431.8,3.93316231]
[1769940685216,4.03147033,2432.7,2431.8,3.93316231]
[1769940685917,0.00301199,2432.7,2432.0,3.93316231]
[1769940689916,4.03147033,2432.7,2432.0,3.93316231]
[1769940690111,4.03147033,2432.7,2431.7,3.93316231]
[1769940691617,4.03147033,2432.7,2431.8,3.93316231]
[1769940696221,0.00301199,2432.7,2431.8,3.93316231]
[1769940696422,4.02845834,2433.0,2432.2,3.93316231]
[1769940697521,0.00417161,2433.0,2432.2,3.93634256]
[1769940698922,0.00417161,2433.0,2432.4,3.66615315]
[1769940699925,3.75209953,2433.3,2432.4,3.66615315]
[1769940700927,3.75548544,2433.3,2432.4,3.66615315]
[1769940701437,3.75548544,2433.3,2432.3,1.58115646]
[1769940701438,0.00338591,2433.3,2432.6,3.66615315]
[1769940701736,3.75209953,2433.5,2432.6,3.66615315]
[1769940702136,4.115,2433.9,2433.0,3.66615315]
[1769940702137,3.75209953,2433.7,2433.0,3.66615315]
[1769940702732,3.75623426,2433.7,2433.0,3.66615315]
[1769940703631,0.00413473,2433.7,2433.0,3.66615315]
[1769940704635,7.89008748,2433.9,2433.0,3.66615315]
[1769940704937,3.77508748,2433.9,2433.0,3.66615315]
[1769940705138,3.77508748,2433.9,2433.2,3.82927624]
[1769940705341,3.77508748,2433.9,2433.0,3.82927624]
[1769940705542,3.78011337,2433.9,2432.8,3.82927624]
[1769940705743,0.00502589,2433.9,2433.2,3.82927624]
[1769940706138,3.77508748,2434.5,2433.4,3.82927624]
[1769940707132,3.77824161,2434.5,2433.4,3.82927624]
[1769940708342,3.77824161,2434.5,2433.6,3.82927624]
[1769940711044,3.77508748,2434.9,2433.6,3.82927624]
[1769940712243,3.77828912,2434.9,2433.6,3.82927624]
[1769940713137,0.00320164,2434.9,2433.7,3.82927624]
[1769940713341,3.77508748,2435.4,2434.0,3.82927624]
[1769940713541,3.77508748,2435.4,2434.2,3.82927624]
[1769940713736,3.77508748,2435.4,2434.3,3.82927624]
[1769940714337,3.77857229,2435.4,2434.3,3.83404313]
[1769940715144,3.77857229,2435.4,2434.3,0.00476689]
[1769940715343,3.77508748,2435.2,2434.3,0.00476689]
[1769940719549,0.00348481,2435.4,2434.3,0.00476689]
[1769940719746,12.323018,2437.2,2434.3,0.00476689]
[1769940719747,3.77508748,2436.7,2435.6,3.82927624]
[1769940719951,3.77508748,2436.5,2435.7,3.82927624]
[1769940720146,3.77508748,2436.5,2435.2,3.82927624]
[1769940720346,3.77508748,2436.5,2435.4,3.82927624]
[1769940720542,3.77508748,2436.3,2435.4,6.24027624]
[1769940720742,3.77508748,2436.9,2435.5,3.82927624]
[1769940721646,3.77508748,2436.8,2435.5,3.82927624]
[1769940721952,3.77508748,2436.6,2435.4,2.411]
[1769940722348,3.77508748,2436.5,2435.4,2.411]
[1769940722549,3.77508748,2436.5,2435.2,3.82927624]
[1769940722743,3.77508748,2436.5,2434.8,3.82927624]
[1769940723047,3.77508748,2436.3,2434.8,3.82927624]
[1769940723551,3.77508748,2436.1,2434.8,3.82927624]
[1769940724152,3.77508748,2436.0,2434.8,3.82927624]
[1769940725152,3.77508748,2436.0,2434.9,6.44427624]
[1769940725352,3.77508748,2436.0,2434.9,3.82927624]
[1769940725555,3.77508748,2435.9,2435.0,2.947]
[1769940725853,3.77508748,2435.9,2435.0,6.77627624]
[1769940726051,7.88228748,2435.9,2435.0,3.82927624]
[1769940726251,7.88228748,2435.9,2435.0,6.91127624]
[1769940727254,3.93792449,2435.8,2435.0,3.82927624]
[1769940727755,8.04512449,2435.8,2435.0,3.82927624]
[1769940730946,4.1072,2435.8,2435.0,3.82927624]
[1769940731148,8.04512449,2435.8,2435.1,3.15]
[1769940731651,4.1072,2435.7,2435.0,7.46427624]
[1769940731851,8.04512449,2435.8,2435.0,7.46427624]
[1769940732052,3.93792449,2435.7,2435.0,7.46427624]
[1769940732252,3.93792449,2435.4,2434.7,4.109]
[1769940732457,3.93792449,2435.4,2434.6,4.01903576]
[1769940732759,3.93792449,2435.4,2434.7,12.44803576]
[1769940732961,3.93792449,2435.4,2434.7,4.01903576]
[1769940733258,3.93792449,2435.4,2434.8,4.78]
[1769940734257,3.93792449,2435.4,2434.8,8.79903576]
[1769940734758,8.04512449,2435.4,2434.8,8.79903576]
[1769940734948,8.04512449,2435.4,2434.8,8.80403576]
[1769940735257,8.04512449,2435.4,2434.8,8.24203576]
[1769940735555,4.1072,2435.4,2434.9,4.01903576]
[1769940735957,4.1072,2435.3,2434.9,4.01903576]
[1769940736157,4.1072,2435.4,2434.9,4.01903576]
[1769940736652,4.1072,2435.3,2434.9,4.01903576]
[1769940736852,4.1072,2435.4,2434.9,4.01903576]
[1769940737254,4.1072,2435.3,2434.9,4.01903576]
[1769940737454,4.1072,2435.4,2434.9,4.01903576]
[1769940737856,3.93792449,2435.6,2434.9,4.01903576]
[1769940738055,8.04512449,2435.6,2434.9,4.01903576]
[1769940738654,3.93792449,2436.2,2434.9,4.01903576]
[1769940740057,3.93792449,2436.2,2435.0,7.57641633]
[1769940740659,3.93792449,2436.2,2435.1,2.75630972]
[1769940741164,3.93792449,2436.2,2435.1,4.795]
[1769940743362,3.93792449,2436.2,2435.0,7.57300575]
[1769940744364,3.93792449,2436.2,2435.1,2.95005514]
[1769940744961,3.93792449,2436.2,2434.8,5.35615242]
[1769940745154,3.93792449,2436.2,2434.7,3.92482138]
[1769940745155,4.14337449,2436.2,2434.7,3.92482138]
[1769940745359,4.14337449,2436.2,2434.6,5.35615242]
[1769940746066,4.14337449,2436.2,2434.7,2.97746044]
[1769940747263,4.14337449,2436.2,2434.8,2.97746044]
[1769940751260,4.14337449,2436.2,2434.8,9.3083791]
[1769940752260,10.29442075,2436.2,2434.8,5.38355772]
[1769940752460,3.93792449,2436.1,2434.8,9.3083791]
[1769940753865,3.93792449,2436.1,2434.9,2.96827768]
[1769940754463,3.93792449,2436.1,2435.0,2.95436651]
[1769940754664,3.93792449,2436.1,2435.1,2.95436651]
[1769940754863,3.93792449,2436.1,2435.3,2.95436651]
[1769940755959,3.93792449,2436.4,2435.3,2.95436651]
[1769940756668,3.93792449,2436.4,2435.4,2.95450691]
[1769940757268,3.74467823,2436.8,2435.7,2.95261628]
[1769940757559,3.74467823,2436.8,2435.6,4.812]
[1769940757957,3.74467823,2436.8,2435.4,7.53707303]
[1769940757958,3.74082743,2436.7,2435.3,5.35871356]
[1769940758163,3.74082743,2436.6,2435.4,4.56]
[1769940758756,3.74082743,2436.6,2435.3,2.95261628]
[1769940758957,3.74082743,2436.6,2435.3,7.76661628]
[1769940759160,3.74082743,2436.6,2435.1,9.26291691]
[1769940759357,3.94625743,2436.4,2434.9,5.35499895]
[1769940759557,3.94625743,2436.4,2434.9,10.16999895]
[1769940759957,3.74082743,2436.2,2434.8,4.816]
[1769940761167,3.74082743,2436.2,2434.8,7.76325902]
[1769940761466,3.74082743,2436.2,2434.9,2.94725902]
[1769940762467,3.74082743,2436.2,2435.0,3.00429308]
[1769940765262,3.66617066,2436.5,2435.1,2.40609728]
[1769940765466,3.66617066,2436.7,2435.4,3.01651241]
[1769940766072,0.0038508,2436.8,2435.5,3.01651241]
[1769940766369,0.0038508,2436.8,2435.7,2.98608813]
[1769940766673,0.0038508,2436.8,2435.8,2.98608813]
[1769940768261,3.66617066,2437.7,2436.2,2.90312322]
[1769940768466,3.66617066,2437.7,2436.4,2.90312322]
[1769940768662,3.66617066,2437.7,2436.6,2.90312322]
[1769940769271,3.66617066,2437.7,2436.6,2.90611745]
[1769940769272,3.66951839,2437.7,2436.6,2.90611745]
[1769940770069,3.66951839,2437.7,2436.7,2.409]
[1769940770463,3.66951839,2437.7,2436.6,2.90611745]
[1769940770464,3.66951839,2437.7,2436.6,5.40611745]
[1769940770968,3.66951839,2437.7,2436.6,0.00299423]
[1769940772870,6.15104626,2438.3,2436.7,2.89513179]
[1769940773079,6.15104626,2438.6,2436.7,5.30413179]
[1769940773274,0.2053,2438.0,2436.7,2.409]
[1769940773470,0.2053,2438.0,2436.6,0.00299423]
[1769940773874,0.21025244,2438.0,2436.6,0.00299423]
[1769940774875,3.66617066,2437.9,2436.6,0.00299423]
[1769940775777,3.66617066,2437.9,2436.6,3.83386918]
[1769940779581,0.00495244,2438.0,2436.6,6.26055865]
[1769940779779,0.00495244,2438.0,2436.7,3.83087495]
[1769940779976,3.81784748,2438.0,2436.7,3.83087495]
[1769940780377,0.00495244,2438.0,2436.9,3.83087495]
[1769940781178,3.81289504,2438.9,2437.2,3.83087495]
[1769940782281,3.81289504,2438.6,2437.2,7.93787495]
[1769940782580,3.81289504,2438.6,2437.3,6.23887495]
[1769940782980,3.81289504,2438.6,2437.4,3.83087495]
[1769940783377,3.81289504,2438.6,2437.4,7.36487495]
[1769940783782,3.81289504,2438.6,2437.4,3.83087495]
[1769940783980,3.81289504,2438.4,2437.3,2.408]
[1769940785382,3.81289504,2438.4,2437.2,2.692]
[1769940785681,3.81289504,2438.4,2437.2,6.52287495]
[1769940786486,3.81289504,2438.4,2437.2,3.83087495]
[1769940786684,3.81289504,2438.4,2437.2,6.77187495]
[1769940787084,3.81289504,2438.4,2437.2,3.83087495]
[1769940787285,0.00459286,2438.9,2436.8,2.408]
[1769940787286,3.75333419,2438.1,2436.8,2.408]
[1769940787492,3.75333419,2438.1,2436.7,6.90878225]
[1769940788093,3.75333419,2438.1,2436.8,3.98778225]
[1769940789403,3.75333419,2438.1,2436.8,7.05078225]
[1769940789893,3.75333419,2438.1,2436.8,3.98778225]
[1769940790901,3.75333419,2438.1,2436.9,2.408]